bitfinex/quotes_ETHUSD_20250524
["timestamp","ask_amount","ask_price","bid_price","bid_amount"]
[1748073597243,0.36414825,2542.7,2542.1,2.156387]
[1748073598780,0.36414825,2542.8,2542.1,1.380687]
[1748073598981,0.36414825,2542.8,2542.2,0.7757]
[1748073599137,0.36414825,2542.8,2542.3,32.324]
[1748073599562,0.36414825,2542.9,2542.3,15.366]
[1748073600170,8.0,2543.0,2542.3,15.366]
[1748073600540,8.0,2543.0,2542.2,0.7757]
[1748073600740,0.36399808,2542.9,2542.2,0.7757]
[1748073601684,2.11689711,2543.2,2542.2,0.7757]
[1748073601685,0.36399808,2543.1,2542.2,0.7757]
[1748073602374,0.36399808,2543.0,2542.2,0.7757]
[1748073602801,0.36399808,2543.0,2542.3,11.776]
[1748073603005,9.12219808,2543.1,2542.3,13.1692387]
[1748073604378,8.7582,2543.1,2542.2,0.7757]
[1748073604579,1.35869711,2543.0,2542.3,11.776]
[1748073605302,10.357,2543.7,2542.4,0.7757]
[1748073605462,0.7582,2543.4,2542.5,11.776]
[1748073605668,2.11689711,2543.4,2542.5,13.03117]
[1748073605889,2.11689711,2543.4,2542.6,0.03932504]
[1748073606090,2.11689711,2543.4,2542.5,13.03117]
[1748073606289,0.7582,2543.8,2542.6,0.7757]
[1748073607395,1.35869711,2543.7,2542.6,0.7757]
[1748073607568,1.35869711,2543.7,2542.8,0.7757]
[1748073608403,1.35869711,2543.7,2542.9,11.776]
[1748073608605,1.35869711,2543.7,2542.8,0.7757]
[1748073608775,1.35869711,2543.5,2542.9,11.774]
[1748073608972,3.71569711,2543.7,2542.9,11.774]
[1748073609313,8.0,2543.6,2543.0,33.57297]
[1748073609994,1.35869711,2543.5,2543.0,16.955]
[1748073610199,0.7934,2543.4,2543.1,27.137]
[1748073611236,0.7934,2543.7,2543.2,0.782]
[1748073611508,0.05,2543.9,2543.2,8.0]
[1748073611683,0.05,2543.9,2543.3,0.782]
[1748073611885,0.05,2543.9,2543.5,0.782]
[1748073612212,1.40869711,2543.9,2543.5,0.782]
[1748073612410,1.35869711,2543.7,2543.6,11.774]
[1748073612620,0.7934,2543.8,2543.6,11.774]
[1748073612821,0.05,2543.9,2543.6,11.774]
[1748073613184,0.36381443,2543.8,2543.6,11.774]
[1748073614124,0.41381443,2543.9,2543.6,11.774]
[1748073615031,0.05,2543.9,2543.6,11.774]
[1748073615635,0.05,2543.9,2543.6,13.0296]
[1748073616230,0.05,2543.9,2543.6,11.774]
[1748073616399,0.05,2543.9,2543.5,0.782]
[1748073616603,1.35869711,2543.8,2543.1,0.8058]
[1748073616804,1.35869711,2543.4,2543.2,11.773]
[1748073617003,0.21330971,2543.3,2542.8,0.8058]
[1748073617243,1.35869711,2543.2,2542.9,11.773]
[1748073617646,0.21330971,2543.3,2542.9,11.773]
[1748073617847,0.7744,2543.5,2542.9,11.773]
[1748073618019,8.0,2543.5,2542.9,13.03088]
[1748073618219,8.0,2543.5,2542.9,11.773]
[1748073618822,3.18896015,2543.6,2542.9,11.773]
[1748073619052,0.36381443,2543.5,2543.0,0.8058]
[1748073619239,0.36381443,2543.5,2543.1,15.361]
[1748073619815,0.36381443,2543.7,2543.1,15.361]
[1748073620016,0.36381443,2543.7,2543.2,3.31198]
[1748073620358,0.36381443,2543.7,2543.1,15.361]
[1748073620953,3.68464572,2543.9,2543.1,15.361]
[1748073621265,0.05,2543.9,2543.0,0.8058]
[1748073625054,0.05,2543.9,2543.1,11.772]
[1748073625254,0.05,2543.9,2543.2,1.13131921]
[1748073625879,0.05,2543.9,2543.3,0.7911]
[1748073629074,0.05,2543.9,2543.3,6.592]
[1748073629278,0.41381443,2543.9,2543.4,32.279]
[1748073630195,0.05,2543.9,2543.4,32.279]
[1748073631001,0.05,2543.9,2543.4,33.93444028]
[1748073631389,0.05,2543.9,2543.5,15.326]
[1748073631390,0.7743,2543.6,2543.5,15.326]
[1748073631587,0.7743,2543.4,2542.6,0.8267]
[1748073631791,0.7743,2543.4,2542.7,11.771]
[1748073631987,8.0,2543.4,2542.1,0.61385618]
[1748073632198,0.7743,2542.9,2542.2,11.771]
[1748073632400,0.7743,2542.9,2542.3,11.771]
[1748073632578,0.36381443,2542.8,2542.3,11.771]
[1748073634287,0.7743,2542.9,2542.4,11.772]
[1748073634789,0.7743,2542.9,2542.5,11.772]
[1748073634988,1.13811443,2542.9,2542.5,11.772]
[1748073635391,1.13811443,2542.9,2542.6,11.772]
[1748073636105,0.7743,2542.9,2542.6,11.772]
[1748073636503,1.17062602,2542.9,2542.6,11.772]
[1748073638120,0.7743,2542.9,2542.6,11.772]
[1748073639091,0.7743,2542.9,2542.7,32.285]
[1748073639926,0.7743,2542.9,2542.8,11.774]
[1748073640127,0.7743,2542.9,2542.1,0.61385618]
[1748073640298,0.7743,2542.9,2542.8,11.774]
[1748073640505,0.7743,2542.9,2542.1,0.61385618]
[1748073640700,0.7743,2542.9,2542.2,11.774]
[1748073641234,0.7743,2542.9,2542.1,0.61385618]
[1748073641389,0.8019,2542.7,2542.2,11.774]
[1748073642390,0.8019,2542.7,2542.1,0.61385618]
[1748073642590,1.20098602,2542.7,2542.3,11.775]
[1748073645142,9.20098602,2542.7,2542.1,0.61385618]
[1748073645329,8.39908602,2542.7,2542.4,11.775]
[1748073645628,0.756,2542.6,2542.1,0.61385618]
[1748073645831,0.756,2542.4,2542.2,11.775]
[1748073646035,0.756,2542.4,2542.1,0.61385618]
[1748073646197,0.756,2542.4,2542.2,11.775]
[1748073646399,1.35923709,2542.3,2542.1,0.61385618]
[1748073646603,1.35923709,2542.3,2542.2,11.775]
[1748073646823,1.5707608,2542.3,2542.2,11.775]
[1748073647211,1.5707608,2542.3,2542.1,0.61385618]
[1748073647501,0.756,2542.2,2542.1,0.61385618]
[1748073647714,0.756,2542.4,2542.1,12.38885618]
[1748073647913,1.35923709,2544.0,2542.2,0.03933656]
[1748073647914,0.36381443,2542.3,2542.2,0.03933656]
[1748073648202,0.36381443,2542.3,2542.2,2.14290583]
[1748073648403,0.36381443,2542.3,2542.2,2.10356927]
[1748073648631,1.35923709,2542.9,2542.2,12.5585]
[1748073649018,2.11523709,2543.1,2542.2,12.5585]
[1748073649240,2.11523709,2543.1,2542.3,32.291]
[1748073650346,2.11523709,2543.1,2542.3,15.333]
[1748073651041,0.756,2543.1,2542.3,15.333]
[1748073651350,0.756,2543.1,2542.4,3.55605]
[1748073651653,0.756,2543.1,2542.4,0.7669]
[1748073651809,1.11981443,2543.1,2542.4,0.7669]
[1748073652148,0.36381443,2543.1,2542.4,0.7669]
[1748073652312,0.7615,2543.0,2542.4,0.7669]
[1748073652685,0.7615,2543.0,2542.5,11.776]
[1748073652822,0.7615,2543.0,2542.5,13.03029]
[1748073653143,0.7615,2543.0,2542.5,1.25429]
[1748073653347,0.7615,2543.0,2542.6,11.776]
[1748073654318,3.1185,2543.0,2542.1,1.38075618]
[1748073654708,3.48231443,2543.0,2542.2,11.776]
[1748073656354,0.7905,2542.6,2542.3,11.776]
[1748073658524,0.7905,2542.6,2542.1,0.61385618]
[1748073658723,0.7905,2542.6,2542.2,11.776]
[1748073658925,0.36279418,2542.6,2542.2,11.776]
[1748073659151,0.36279418,2542.6,2542.3,32.219]
[1748073659663,0.36279418,2542.5,2542.3,32.219]
[1748073659860,0.36279418,2542.5,2542.4,11.776]
[1748073660961,0.36279418,2542.5,2542.4,16.48379309]
[1748073661161,0.36279418,2542.5,2542.4,12.5338]
[1748073661362,0.36279418,2542.5,2542.4,13.0838]
[1748073661533,0.72612642,2543.2,2542.5,0.7578]
[1748073661743,0.36279418,2543.2,2542.7,0.7578]
[1748073662120,0.36279418,2543.2,2542.8,11.776]
[1748073662324,0.36279418,2543.2,2542.9,1.25338]
[1748073662869,0.36372272,2543.5,2543.0,0.79711588]
[1748073663024,8.8354,2543.9,2543.1,11.775]
[1748073663460,0.72719457,2543.8,2543.1,11.775]
[1748073663679,0.72719457,2543.8,2543.1,1.378618]
[1748073663881,0.36361199,2543.7,2543.2,11.775]
[1748073664041,8.7854,2543.3,2542.5,0.46920397]
[1748073664233,0.7854,2543.3,2542.6,11.775]
[1748073664567,0.72719457,2543.2,2542.6,11.775]
[1748073664870,0.72719457,2543.2,2542.6,12.9994204]
[1748073665045,0.36361199,2543.1,2542.6,12.9994204]
[1748073665527,0.72719457,2543.0,2542.6,12.9994204]
[1748073665728,0.72719457,2543.0,2542.7,0.7578]
[1748073666150,0.36358258,2543.0,2542.7,0.7578]
[1748073666461,0.36361199,2543.2,2542.8,13.15072204]
[1748073666664,0.36361199,2543.2,2542.8,11.775]
[1748073666850,0.7854,2543.2,2542.4,0.7578]
[1748073667163,0.7269832,2543.1,2542.5,11.775]
[1748073667729,0.7269832,2543.1,2542.6,0.7578]
[1748073667937,0.36337121,2543.1,2542.6,0.7578]
[1748073668154,0.36337121,2543.1,2542.7,1.25328]
[1748073668323,0.36337121,2543.2,2542.7,1.25328]
[1748073668528,0.36337121,2543.2,2542.8,0.7578]
[1748073669155,0.36337121,2543.2,2542.9,23.551]
[1748073669341,0.7269832,2543.6,2543.0,27.035]
[1748073669533,0.36337121,2543.6,2543.0,27.035]
[1748073669730,0.36337121,2543.6,2543.0,11.775]
[1748073669964,9.14901199,2543.5,2542.5,0.7578]
[1748073670265,9.14901199,2543.5,2543.1,11.775]
[1748073670446,0.36361199,2543.4,2543.1,11.775]
[1748073670626,0.7269832,2543.4,2543.1,11.775]
[1748073670829,0.36361199,2543.3,2543.1,11.775]
[1748073671452,0.36361199,2543.3,2543.2,11.775]
[1748073671855,8.7269832,2543.3,2543.2,11.775]
[1748073672288,8.36337121,2543.3,2543.2,11.775]
[1748073672691,8.7269832,2543.3,2543.2,11.775]
[1748073672881,8.7269832,2543.3,2542.5,0.7578]
[1748073673078,8.36337121,2543.3,2542.6,11.775]
[1748073673462,8.7269832,2543.3,2542.6,11.775]
[1748073673662,8.36337121,2543.3,2542.6,11.775]
[1748073673863,0.36337121,2543.2,2542.6,11.775]
[1748073674086,0.36337121,2543.2,2542.6,13.02828]
[1748073674496,0.36337121,2543.1,2542.6,13.02828]
[1748073674697,0.36337121,2543.1,2542.7,11.775]
[1748073675704,0.36337121,2543.0,2542.7,11.775]
[1748073676498,0.36337121,2543.0,2542.8,0.7662]
[1748073676685,0.36337121,2543.3,2542.9,1.25412]
[1748073678181,0.36361199,2543.6,2542.9,1.25412]
[1748073678383,0.36361199,2543.5,2542.9,1.25412]
[1748073678591,0.36361199,2543.5,2543.0,11.774]
[1748073679109,0.36361199,2543.5,2543.1,16.955]
[1748073679311,0.36361199,2543.7,2543.1,32.214]
[1748073679491,0.36343415,2543.4,2543.1,32.214]
[1748073679810,0.36343415,2543.4,2543.2,0.7662]
[1748073679989,0.36343415,2543.4,2543.3,1.60252]
[1748073680189,0.36343415,2543.4,2543.2,0.7662]
[1748073680515,0.36343415,2543.7,2543.2,0.7662]
[1748073681616,0.36343415,2543.8,2543.2,0.7662]
[1748073683373,0.36343415,2543.8,2543.3,0.55]
[1748073683612,0.05,2543.9,2543.3,0.55]
[1748073683613,0.05,2543.9,2543.4,0.7662]
[1748073683977,0.05,2543.9,2543.5,0.03930481]
[1748073684310,0.05,2543.9,2543.4,0.7662]
[1748073684694,0.05,2543.9,2543.5,0.55]
[1748073684894,0.05,2543.9,2543.6,0.7662]
[1748073686124,0.05,2543.9,2543.7,11.773]
[1748073686417,0.05,2543.9,2543.8,11.773]
[1748073686916,0.05,2543.9,2543.1,0.55]
[1748073686917,0.05,2543.9,2543.0,0.7662]
[1748073687094,0.05,2543.9,2543.1,11.773]
[1748073687095,0.45315236,2543.9,2543.1,11.773]
[1748073687289,0.45315236,2543.9,2543.2,11.773]
[1748073687524,0.36297347,2543.8,2543.2,11.773]
[1748073688578,0.7959,2543.7,2543.2,11.773]
[1748073688826,8.7959,2543.4,2542.5,1.38003101]
[1748073689026,0.7959,2543.4,2543.3,11.772]
[1748073689206,0.7959,2543.4,2543.3,32.343]
[1748073689521,0.7959,2543.4,2543.3,44.115]
[1748073689877,0.7959,2543.4,2543.3,27.163]
[1748073690196,1.52248546,2543.4,2543.3,27.163]
[1748073690496,4.34513555,2543.4,2543.3,27.163]
[1748073690928,8.0,2543.1,2542.5,0.61383101]
[1748073691108,8.0,2542.8,2542.5,0.61383101]
[1748073691309,11.62185009,2542.6,2542.5,0.61383101]
[1748073691509,11.62185009,2542.6,2542.5,12.38583101]
[1748073691712,0.36361199,2542.6,2542.5,12.38583101]
[1748073691893,0.36361199,2542.6,2542.5,13.62441411]
[1748073692221,0.36297347,2542.8,2542.5,13.62441411]
[1748073692595,0.36297347,2542.8,2542.5,14.42721411]
[1748073693285,0.36297347,2543.2,2542.5,14.42721411]
[1748073693721,0.36297347,2543.2,2542.6,0.8028]
[1748073693920,0.36297347,2543.2,2542.7,1.44272141]
[1748073694320,0.36297347,2543.5,2542.7,1.44272141]
[1748073695135,0.36297347,2543.4,2542.7,1.44272141]
[1748073695336,0.36297347,2543.4,2542.8,0.7926]
[1748073696041,0.36297347,2543.4,2542.9,11.774]
[1748073696338,0.36297347,2543.3,2542.9,13.03066]
[1748073697198,0.36297347,2543.2,2542.9,11.774]
[1748073697899,0.36297347,2543.4,2542.8,0.7926]
[1748073698101,0.36297347,2543.4,2542.9,11.774]
[1748073699245,0.36297347,2543.4,2543.0,32.349]
[1748073699740,0.36297347,2543.7,2543.0,32.349]
[1748073699924,0.36297347,2543.7,2543.1,3.94999309]
[1748073700249,0.36297347,2543.7,2543.0,15.394]
[1748073700603,0.36361199,2543.6,2543.0,15.394]
[1748073700812,0.36297347,2543.5,2543.1,11.774]
[1748073701046,0.7602,2543.4,2543.2,11.774]
[1748073701409,0.7602,2543.4,2542.6,0.8169]
[1748073701615,0.7602,2543.4,2542.6,1.5619731]
[1748073701807,0.36297347,2543.3,2542.7,11.774]
[1748073702448,0.36297347,2543.3,2542.6,1.5619731]
[1748073702647,0.36297347,2543.3,2542.8,11.774]
[1748073703513,0.36297347,2543.2,2542.8,11.774]
[1748073703712,0.36297347,2543.2,2542.9,1.1774]
[1748073704250,8.36297347,2543.2,2542.5,0.61383101]
[1748073704453,8.0,2542.9,2542.6,11.774]
[1748073704622,0.36297347,2542.8,2542.5,0.61383101]
[1748073704827,0.36297347,2542.8,2542.7,11.774]
[1748073706259,1.51818546,2542.8,2542.7,11.774]
[1748073706746,0.36297347,2542.8,2542.7,11.774]
[1748073707461,0.36361199,2543.1,2542.7,12.5511]
[1748073707671,0.36361199,2543.1,2542.8,0.7771]
[1748073707818,0.36297347,2543.2,2542.8,0.7771]
[1748073708160,0.36297347,2543.2,2542.9,1.25511]
[1748073708342,0.36297347,2543.7,2543.0,0.7771]
[1748073709366,0.36297347,2543.7,2543.2,0.7771]
[1748073709861,0.36297347,2543.7,2543.3,11.775]
[1748073710167,0.36297347,2543.7,2543.2,0.7771]
[1748073710324,2.3271667,2543.8,2543.4,11.775]
[1748073710524,0.36297347,2543.8,2543.4,13.03021]
[1748073710735,0.36297347,2543.8,2543.5,11.775]
[1748073710940,1.12357347,2543.7,2543.5,11.775]
[1748073711272,1.12357347,2543.7,2543.6,11.775]
[1748073712125,0.36297347,2543.7,2543.6,11.775]
[1748073715351,0.36297347,2543.7,2543.6,11.773]
[1748073719169,0.36297347,2543.7,2543.6,32.371]
[1748073719371,0.36297347,2543.7,2543.6,27.191]
[1748073719770,0.36297347,2543.7,2543.6,11.773]
[1748073722866,0.36297347,2543.7,2543.6,13.7637]
[1748073723754,0.05,2543.9,2543.6,13.7637]
[1748073724580,0.05,2543.9,2543.7,11.772]
[1748073724877,0.05,2543.9,2543.8,11.772]
[1748073729184,0.05,2543.9,2543.8,44.137]
[1748073729382,0.05,2543.9,2543.8,48.08699309]
[1748073732257,0.05,2543.9,2543.8,31.13699309]
[1748073732599,0.05,2543.9,2543.8,15.72199309]
[1748073732902,0.05,2543.9,2543.8,11.772]
[1748073733850,0.05,2543.9,2543.8,12.5231]
[1748073734464,0.05,2543.9,2543.8,0.7511]
[1748073734704,0.05,2543.9,2543.2,0.55]
[1748073734903,0.05,2543.9,2543.3,12.5211]
[1748073735202,0.05,2543.9,2543.4,1.30711]
[1748073735506,0.05,2543.9,2543.5,0.7511]
[1748073735710,0.05,2543.9,2543.5,12.5211]
[1748073737507,0.05,2543.9,2543.5,0.7511]
[1748073737809,0.05,2543.9,2543.6,11.77]
[1748073737966,0.05,2543.9,2543.7,1.25211]
[1748073739178,0.05,2543.9,2543.8,15.414]
[1748073739607,0.05,2543.9,2543.8,16.1651]
[1748073739981,0.05,2543.9,2543.8,11.77]
[1748073740812,0.41396166,2543.9,2543.8,11.77]
[1748073741009,0.41396166,2543.9,2543.8,13.072211]
[1748073741718,0.41396166,2543.9,2543.8,13.839611]
[1748073742278,0.36394677,2544.3,2543.9,0.7674]
[1748073742480,0.36394677,2544.3,2544.1,0.7674]
[1748073742695,0.8807,2544.9,2544.1,0.7674]
[1748073742696,0.36394677,2544.8,2544.1,0.7674]
[1748073742932,0.36394677,2544.8,2544.1,8.0]
[1748073743115,0.05,2544.9,2544.2,0.7674]
[1748073743806,0.05,2544.9,2544.4,0.7674]
[1748073744007,0.05,2544.9,2544.5,0.55]
[1748073744322,0.05,2544.9,2544.8,0.7674]
[1748073744505,0.05,2544.9,2544.8,19.77]
[1748073744702,0.05,2544.9,2544.8,22.5144]
[1748073745456,0.8109,2544.9,2544.8,11.769]
[1748073745645,0.8109,2544.9,2544.8,12.1443654]
[1748073745780,0.05,2544.9,2544.8,12.1443654]
[1748073746473,0.05,2544.9,2544.8,11.769]
[1748073747388,0.05,2544.9,2544.4,0.8166]
[1748073747586,0.05,2544.9,2544.8,11.768]
[1748073748608,0.05,2544.9,2544.8,12.9448]
[1748073749321,0.05,2544.9,2544.8,45.3018]
[1748073750327,0.05,2544.9,2544.8,17.415]
[1748073750628,0.05,2544.9,2544.8,28.3548]
[1748073752432,0.05,2544.9,2544.8,12.9438]
[1748073753224,0.05,2544.9,2544.6,0.8272]
[1748073753427,0.05,2544.9,2544.7,11.767]
[1748073754239,0.05,2544.9,2544.8,0.7871]
[1748073755130,0.05,2544.9,2544.7,11.767]
[1748073755626,0.05,2544.9,2544.8,11.767]
[1748073756725,0.05,2544.9,2544.3,0.8214]
[1748073756904,0.8391,2544.9,2544.4,11.766]
[1748073757619,2.907,2544.8,2543.7,0.46824032]
[1748073757788,0.7891,2543.7,2542.1,1.07610826]
[1748073758020,12.72117908,2543.2,2543.1,11.766]
[1748073758223,15.07830872,2543.1,2542.1,0.05]
[1748073758464,18.40037318,2543.1,2543.0,12.37964172]
[1748073758658,14.46816446,2543.1,2543.0,12.37964172]
[1748073758860,12.06004677,2543.1,2543.0,12.37964172]
[1748073759156,11.87325738,2543.1,2543.0,44.69664172]
[1748073759353,11.87325738,2543.1,2543.0,44.083]
[1748073759354,11.50931061,2543.1,2543.0,44.083]
[1748073759544,11.50931061,2543.1,2543.0,27.136]
[1748073759918,11.50931061,2543.1,2543.0,11.769]
[1748073760143,9.15231061,2543.1,2543.0,12.38300504]
[1748073760758,8.7891,2543.1,2543.0,12.38300504]
[1748073761772,0.7891,2543.1,2543.0,12.38300504]
[1748073762059,0.7891,2543.1,2543.0,0.61400504]
[1748073762263,0.7891,2543.1,2543.0,12.38300504]
[1748073765073,1.3391,2543.1,2543.0,0.61400504]
[1748073765245,4.1608876,2543.1,2543.0,12.38600504]
[1748073765446,12.1608876,2543.1,2543.0,12.38600504]
[1748073766185,16.45395715,2543.1,2543.0,12.38600504]
[1748073766387,12.88230223,2543.1,2543.0,12.38600504]
[1748073767084,12.33230223,2543.1,2543.0,12.38600504]
[1748073768185,16.81451095,2543.1,2543.0,0.61400504]
[1748073768388,12.33230223,2543.1,2543.0,12.38800504]
[1748073768686,1.1496538,2543.1,2543.0,12.38800504]
[1748073769187,4.5214414,2543.1,2543.0,17.56900504]
[1748073769362,12.06303174,2543.1,2543.0,44.72000504]
[1748073770887,9.24124414,2543.1,2543.0,44.72000504]
[1748073771246,11.6687,2543.0,2542.1,0.05]
[1748073771444,11.6687,2543.0,2542.2,27.152]
[1748073771445,0.7617,2542.3,2542.2,27.152]
[1748073771690,8.7617,2542.3,2542.2,11.774]
[1748073772565,8.7617,2542.3,2542.2,11.775]
[1748073775887,8.7617,2542.3,2542.1,0.05]
[1748073776089,8.7617,2542.3,2542.2,11.776]
[1748073776690,8.7617,2542.3,2542.1,0.05]
[1748073776899,8.7617,2542.3,2542.2,11.777]
[1748073777097,11.1187,2542.3,2542.2,11.777]
[1748073777391,11.6687,2542.3,2542.2,11.777]
[1748073777754,11.6687,2542.3,2542.1,0.05]
[1748073777996,11.6687,2542.3,2542.2,11.777]
[1748073779281,11.6687,2542.3,2542.2,44.118]
[1748073779492,11.1187,2542.3,2542.2,44.118]
[1748073782296,2.357,2542.4,2542.2,11.777]
[1748073782500,2.82597744,2542.9,2542.2,11.777]
[1748073782703,3.99478112,2543.1,2542.3,0.8131]
[1748073782856,3.99478112,2543.1,2542.4,1.25901]
[1748073782857,1.16880368,2543.1,2542.4,1.25901]
[1748073783074,1.52897058,2543.1,2542.4,1.25901]
[1748073783440,0.3601669,2543.1,2542.4,1.25901]
[1748073783589,0.3601669,2543.1,2542.5,0.8131]
[1748073784283,3.1657,2543.6,2542.5,0.8131]
[1748073784483,0.8087,2543.6,2542.7,0.8131]
[1748073784696,3.18614434,2543.7,2542.7,0.8131]
[1748073785022,8.0,2543.6,2542.7,0.8131]
[1748073785317,3.18614434,2543.7,2542.7,0.8131]
[1748073785318,0.3601669,2543.5,2542.7,0.8131]
[1748073786584,0.3601669,2543.4,2542.7,0.8131]
[1748073787207,0.3601669,2543.3,2542.8,0.8131]
[1748073787583,0.3601669,2543.3,2542.9,11.778]
[1748073788440,0.3601669,2543.2,2542.9,11.778]
[1748073788723,0.3601669,2543.2,2543.0,11.778]
[1748073789109,0.3601669,2543.2,2543.1,32.601]
[1748073789421,0.36221805,2543.5,2543.1,32.601]
[1748073789732,8.0,2543.4,2543.2,11.777]
[1748073790242,0.36285015,2543.3,2543.2,11.777]
[1748073794538,0.36285015,2543.3,2543.2,12.5575]
[1748073795340,0.36279009,2543.6,2543.2,12.5575]
[1748073796123,0.36279009,2543.5,2543.2,12.5575]
[1748073797152,8.36279009,2543.8,2543.2,12.5575]
[1748073797560,8.72500814,2543.8,2543.3,11.775]
[1748073797905,0.36279009,2543.7,2543.3,11.775]
[1748073799369,0.36279009,2543.7,2543.4,32.595]
[1748073799855,0.36279009,2543.6,2543.4,32.595]
[1748073800657,0.36279009,2543.5,2543.4,32.595]
[1748073800859,0.36279009,2543.5,2543.4,15.639]
[1748073801367,0.36279009,2543.5,2543.3,11.775]
[1748073801728,0.36279009,2543.7,2543.3,11.775]
[1748073802440,0.36279009,2543.6,2543.3,11.775]
[1748073803394,0.36279009,2543.9,2543.3,11.775]
[1748073803892,8.36279009,2543.8,2543.0,0.7805]
[1748073804096,0.7836,2543.7,2543.4,11.774]
[1748073804788,0.36279009,2543.6,2543.4,11.774]
[1748073805658,0.36279009,2543.5,2543.4,11.774]
[1748073809202,0.36279009,2543.5,2543.4,44.366]
[1748073810318,0.72500814,2543.5,2543.4,30.11578405]
[1748073810466,0.36279009,2543.5,2543.4,14.47778405]
[1748073811382,0.36221805,2544.5,2543.6,0.7584]
[1748073811583,0.36221805,2544.6,2543.6,0.7584]
[1748073811799,0.36221805,2544.6,2543.8,0.7584]
[1748073812003,0.36221805,2544.8,2543.9,0.7584]
[1748073813083,2.01419323,2544.9,2544.1,0.7584]
[1748073813292,2.01419323,2544.9,2544.2,0.79769235]
[1748073813500,0.05,2544.9,2544.4,0.7584]
[1748073813796,0.05,2544.9,2544.6,0.7584]
[1748073819250,0.05,2544.9,2544.8,8.7722]
[1748073821293,0.05,2544.9,2544.8,0.7722]
[1748073821495,0.05,2544.9,2544.8,20.5392]
[1748073822022,0.05,2544.9,2544.8,8.7722]
[1748073822147,0.05,2544.9,2544.8,22.01842]
[1748073823775,0.05,2544.9,2544.8,14.01742]
[1748073825078,0.05,2544.9,2544.8,14.01642]
[1748073825776,0.05,2544.9,2544.8,2.25142]
[1748073825983,0.05,2544.9,2544.8,12.5372]
[1748073827699,0.05,2544.9,2544.1,0.8031]
[1748073828077,0.05,2544.9,2544.2,11.765]
[1748073828431,0.05,2544.9,2544.3,0.8031]
[1748073829135,0.05,2544.9,2544.4,39.128]
[1748073829337,0.05,2544.9,2544.5,3.94999309]
[1748073829544,0.05,2544.9,2544.6,15.599]
[1748073829750,0.7651,2544.8,2544.7,11.765]
[1748073831493,0.7651,2544.8,2543.8,0.8031]
[1748073831733,0.7651,2544.8,2543.9,11.765]
[1748073832307,0.7651,2544.8,2543.8,0.8031]
[1748073832308,0.7788,2544.6,2544.0,11.765]
[1748073832633,0.7788,2544.6,2544.1,0.7605]
[1748073832995,0.36138378,2544.7,2544.1,0.7605]
[1748073833740,0.8288,2544.9,2544.1,0.7605]
[1748073834296,0.7788,2544.8,2543.6,0.7605]
[1748073834512,8.7788,2544.8,2543.8,0.7605]
[1748073834722,0.7788,2544.8,2544.0,0.7605]
[1748073836258,1.14018378,2544.8,2544.0,0.7605]
[1748073836400,0.36138378,2544.8,2544.0,0.7605]
[1748073837157,0.41138378,2544.9,2544.0,0.7605]
[1748073837955,0.36138378,2544.8,2544.0,0.7605]
[1748073838161,0.36138378,2544.8,2544.1,11.968305]
[1748073838367,0.7788,2544.7,2544.1,11.767]
[1748073838859,0.36138378,2544.6,2544.1,11.767]
[1748073839215,0.36138378,2544.6,2544.2,32.545]
[1748073839418,0.7788,2544.5,2544.2,16.944]
[1748073839615,0.91401838,2544.4,2544.3,27.368]
[1748073840219,1.27540216,2544.4,2544.3,11.767]
[1748073840464,0.7946,2544.3,2543.2,0.8166]
[1748073840630,0.7946,2544.2,2543.3,11.767]
[1748073840963,0.7946,2544.2,2543.4,1.25836]
[1748073841364,0.36138378,2544.1,2543.4,1.25836]
[1748073842161,0.36138378,2544.0,2543.4,1.25836]
[1748073843220,0.36138378,2543.9,2543.4,1.25836]
[1748073843959,0.36138378,2544.1,2543.4,1.25836]
[1748073844158,0.36138378,2544.1,2543.5,1.302536]
[1748073844518,0.36138378,2544.1,2543.6,0.8166]
[1748073844928,2.87008223,2544.9,2543.6,0.8166]
[1748073844929,0.7946,2544.5,2543.6,0.8166]
[1748073845135,0.36138378,2544.7,2543.6,0.8166]
[1748073845662,0.36138378,2544.7,2543.7,6.57]
[1748073845835,0.36138378,2544.7,2543.8,1.45]
[1748073846039,0.36138378,2544.7,2543.8,7.47]
[1748073846929,0.36138378,2544.7,2543.9,8.0]
[1748073847132,0.7782,2544.8,2543.9,8.0]
[1748073849137,0.7782,2544.8,2544.0,39.071]
[1748073849450,0.7782,2544.8,2544.1,3.94999309]
[1748073849651,0.36344639,2544.7,2544.1,3.94999309]
[1748073850636,0.36344639,2544.7,2543.9,8.0]
[1748073851279,0.7782,2544.8,2543.9,8.0]
[1748073852876,0.05,2544.9,2544.2,0.55]
[1748073853192,0.05,2544.9,2544.3,12.5285]
[1748073853895,0.05,2544.9,2544.4,0.55]
[1748073854194,0.05,2544.9,2544.5,2.06935]
[1748073855668,0.05,2544.9,2544.6,0.37475001]
[1748073856893,0.05,2544.9,2544.7,11.767]
[1748073859171,0.05,2544.9,2544.8,39.065]
[1748073859401,0.05,2544.9,2544.8,50.831]
[1748073859609,0.05,2544.9,2544.8,54.78099309]
[1748073860132,0.05,2544.9,2544.8,31.24899309]
[1748073861630,0.05,2544.9,2544.8,16.49079309]
[1748073861829,0.05,2544.9,2544.8,12.5408]
[1748073865456,0.05,2544.9,2544.8,20.5408]
[1748073867444,0.05,2544.9,2544.8,21.0908]
[1748073869240,0.05,2544.9,2544.8,60.1478]
[1748073869740,0.05,2544.9,2544.8,36.6208]